[Event "Titled Tuesday Blitz June 28 Early 2022"]
[White "Mogirzan, Matei-Valeriu"]
[Black "De La Colina, Nicolas"]
[WhiteFideId "1257455"]
[BlackFideId "30946921"]
[WhiteElo "1733"]
[BlackElo "2046"]
[Result "1-0"]
[Round "09"]
[TimeControl "180+1"]
[Date "2022.06.28"]
[WhiteClock "0:00:05"]
[BlackClock "0:00:09"]

1. b3 {[%clk 0:03:00]}  Nf6 {[%clk 0:02:44]} 2. c4 {[%clk 0:02:59]}  g6 {[%clk 0:02:42]} 3. Bb2 {[%clk 0:02:59]}  Bg7 {[%clk 0:02:43]} 4. e4 {[%clk 0:02:57]}  d6 {[%clk 0:02:40]} 5. Nf3 {[%clk 0:02:53]}  c5 {[%clk 0:02:39]} 6. d3 {[%clk 0:02:52]}  Nc6 {[%clk 0:02:39]} 7. g3 {[%clk 0:02:51]}  O-O {[%clk 0:02:35]} 8. Bg2 {[%clk 0:02:49]}  Qc7 {[%clk 0:02:31]} 9. Nc3 {[%clk 0:02:48]}  a6 {[%clk 0:02:30]} 10. O-O {[%clk 0:02:44]}  e6 {[%clk 0:02:29]} 11. Rc1 {[%clk 0:02:40]}  b6 {[%clk 0:02:28]} 12. d4 {[%clk 0:02:39]}  cxd4 {[%clk 0:02:23]} 13. Nxd4 {[%clk 0:02:40]}  Bb7 {[%clk 0:02:23]} 14. Nd5 {[%clk 0:02:34]}  Nxd5 {[%clk 0:01:49]} 15. cxd5 {[%clk 0:02:29]}  Rac8 {[%clk 0:01:40]} 16. dxc6 {[%clk 0:02:22]}  Ba8 {[%clk 0:01:40]} 17. Qc2 {[%clk 0:02:12]}  e5 {[%clk 0:01:38]} 18. Ne2 {[%clk 0:02:06]}  Bxc6 {[%clk 0:01:38]} 19. Bh3 {[%clk 0:02:04]}  f5 {[%clk 0:01:35]} 20. exf5 {[%clk 0:01:57]}  Qd7 {[%clk 0:01:35]} 21. f4 {[%clk 0:01:36]}  Bg2 {[%clk 0:01:19]} 22. Bxg2 {[%clk 0:01:22]}  Rxc2 {[%clk 0:01:18]} 23. Rxc2 {[%clk 0:01:23]}  gxf5 {[%clk 0:01:16]} 24. Rfc1 {[%clk 0:01:17]}  Kh8 {[%clk 0:01:10]} 25. Bd5 {[%clk 0:01:11]}  Qb5 {[%clk 0:01:07]} 26. Bc6 {[%clk 0:00:36]}  Qb4 {[%clk 0:00:54]} 27. fxe5 {[%clk 0:00:20]}  dxe5 {[%clk 0:00:55]} 28. Bg2 {[%clk 0:00:20]}  f4 {[%clk 0:00:33]} 29. gxf4 {[%clk 0:00:15]}  exf4 {[%clk 0:00:34]} 30. Bxg7+ {[%clk 0:00:10]}  Kxg7 {[%clk 0:00:35]} 31. Rc7+ {[%clk 0:00:10]}  Kh8 {[%clk 0:00:34]} 32. R7c4 {[%clk 0:00:02]}  Qd2 {[%clk 0:00:34]} 33. Nxf4 {[%clk 0:00:02]}  Qe3+ {[%clk 0:00:24]} 34. Kh1 {[%clk 0:00:01]}  Rxf4 {[%clk 0:00:25]} 35. Rc8+ {[%clk 0:00:01]}  Kg7 {[%clk 0:00:25]} 36. R8c7+ {[%clk 0:00:01]}  Rf7 {[%clk 0:00:25]} 37. R7c3 {[%clk 0:00:01]}  Qd2 {[%clk 0:00:19]} 38. Rg3+ {[%clk 0:00:02]}  Kf8 {[%clk 0:00:14]} 39. Rc8+ {[%clk 0:00:02]}  Ke7 {[%clk 0:00:15]} 40. h3 {[%clk 0:00:02]}  Qd1+ {[%clk 0:00:13]} 41. Kh2 {[%clk 0:00:03]}  Qd6 {[%clk 0:00:13]} 42. Rg8 {[%clk 0:00:02]}  h5 {[%clk 0:00:13]} 43. h4 {[%clk 0:00:02]}  Qf4 {[%clk 0:00:13]} 44. Kh3 {[%clk 0:00:02]}  Qf5+ {[%clk 0:00:12]} 45. Kh2 {[%clk 0:00:02]}  Qe5 {[%clk 0:00:12]} 46. Kh3 {[%clk 0:00:03]}  Rf4 {[%clk 0:00:10]} 47. R8g5 {[%clk 0:00:03]}  Qe6+ {[%clk 0:00:10]} 48. Kh2 {[%clk 0:00:03]}  Rxh4+ {[%clk 0:00:10]} 49. Kg1 {[%clk 0:00:03]}  Qe1+ {[%clk 0:00:10]} 50. Bf1 {[%clk 0:00:04]}  Qe3+ {[%clk 0:00:10]} 51. Rxe3+ {[%clk 0:00:04]}  Kf6 {[%clk 0:00:09]} 52. Rgg3 {[%clk 0:00:04]}  Rd4 {[%clk 0:00:07]} 53. Bxa6 {[%clk 0:00:03]}  Rd1+ {[%clk 0:00:06]} 54. Kg2 {[%clk 0:00:04]}  Rd2+ {[%clk 0:00:07]} 55. Re2 {[%clk 0:00:04]}  Rd4 {[%clk 0:00:07]} 56. Rh3 {[%clk 0:00:04]}  Kg5 {[%clk 0:00:07]} 57. Re5+ {[%clk 0:00:04]}  Kf4 {[%clk 0:00:07]} 58. Rhxh5 {[%clk 0:00:02]}  Rd2+ {[%clk 0:00:08]} 59. Re2 {[%clk 0:00:02]}  Rd1 {[%clk 0:00:09]} 60. Kf2 {[%clk 0:00:02]}  Ra1 {[%clk 0:00:09]} 61. Re4+ {[%clk 0:00:03]}  Kxe4 {[%clk 0:00:09]} 62. Rh4+ {[%clk 0:00:03]}  Kd5 {[%clk 0:00:08]} 63. Bc4+ {[%clk 0:00:03]}  Kc5 {[%clk 0:00:08]} 64. a4 {[%clk 0:00:03]}  Kb4 {[%clk 0:00:08]} 65. Bd5+ {[%clk 0:00:03]}  Kc5 {[%clk 0:00:08]} 66. Bc4 {[%clk 0:00:04]}  Kb4 {[%clk 0:00:08]} 67. Rh5 {[%clk 0:00:04]}  Ra2+ {[%clk 0:00:07]} 68. Ke3 {[%clk 0:00:04]}  Kc3 {[%clk 0:00:07]} 69. Rb5 {[%clk 0:00:04]}  Ra1 {[%clk 0:00:07]} 70. Rxb6 {[%clk 0:00:05]}  Re1+ {[%clk 0:00:08]} 71. Kf4 {[%clk 0:00:05]}  Re8 {[%clk 0:00:09]} 72. a5 {[%clk 0:00:05]}  Kd4 {[%clk 0:00:08]} 73. a6 {[%clk 0:00:05]}  Kc5 {[%clk 0:00:09]} 74. Re6 {[%clk 0:00:04]}  Rf8+ {[%clk 0:00:10]} 75. Ke5 {[%clk 0:00:04]}  Ra8 {[%clk 0:00:11]} 76. Re7 {[%clk 0:00:04]}  Kc6 {[%clk 0:00:10]} 77. Bd5+ {[%clk 0:00:04]}  Kb6 {[%clk 0:00:10]} 78. Bxa8 {[%clk 0:00:05]}  Ka5 {[%clk 0:00:10]} 79. a7 {[%clk 0:00:05]}  Kb6 {[%clk 0:00:10]} 80. Bd5 {[%clk 0:00:05]}  Kc5 {[%clk 0:00:10]} 81. a8=Q {[%clk 0:00:04]}  Kb4 {[%clk 0:00:10]} 82. Qb7+ {[%clk 0:00:04]}  Ka3 {[%clk 0:00:09]} 83. Qa6+ {[%clk 0:00:03]}  Kb2 {[%clk 0:00:10]} 84. b4 {[%clk 0:00:04]}  Kc3 {[%clk 0:00:10]} 85. b5 {[%clk 0:00:04]}  Kb2 {[%clk 0:00:08]} 86. b6 {[%clk 0:00:05]}  Kc3 {[%clk 0:00:09]} 87. b7 {[%clk 0:00:05]}  Kd2 {[%clk 0:00:09]} 88. b8=Q {[%clk 0:00:05]}  Kc3 {[%clk 0:00:09]} 89. Qb3+ {[%clk 0:00:05]} 1-0


[Site "https://www.chess.com"]

[Event "Titled Tuesday Blitz June 28 Early 2022"]
[White "Molina, Roberto Junio Brito"]
[Black "Orlov, Georgi"]
[WhiteFideId "2109450"]
[BlackFideId "2011271"]
[WhiteElo "2432"]
[BlackElo "2569"]
[Result "1-0"]
[Round "09"]
[TimeControl "180+1"]
[Date "2022.06.28"]
[WhiteClock "0:00:51"]
[BlackClock "0:00:05"]

1. d4 {[%clk 0:03:00]}  Nf6 {[%clk 0:02:59]} 2. c4 {[%clk 0:02:59]}  Nc6 {[%clk 0:02:59]} 3. Nf3 {[%clk 0:02:57]}  e6 {[%clk 0:02:59]} 4. Nc3 {[%clk 0:02:57]}  Bb4 {[%clk 0:02:59]} 5. Qc2 {[%clk 0:02:57]}  d6 {[%clk 0:02:59]} 6. a3 {[%clk 0:02:56]}  Bxc3+ {[%clk 0:02:59]} 7. Qxc3 {[%clk 0:02:57]}  O-O {[%clk 0:02:59]} 8. g3 {[%clk 0:02:57]}  Qe7 {[%clk 0:02:50]} 9. Bg2 {[%clk 0:02:57]}  e5 {[%clk 0:02:50]} 10. d5 {[%clk 0:02:57]}  Nb8 {[%clk 0:02:49]} 11. O-O {[%clk 0:02:57]}  Bg4 {[%clk 0:02:47]} 12. b4 {[%clk 0:02:56]}  c6 {[%clk 0:02:43]} 13. h3 {[%clk 0:02:50]}  Bh5 {[%clk 0:02:39]} 14. dxc6 {[%clk 0:02:45]}  Nxc6 {[%clk 0:02:38]} 15. Bb2 {[%clk 0:02:45]}  Rac8 {[%clk 0:02:36]} 16. Rac1 {[%clk 0:02:44]}  e4 {[%clk 0:02:33]} 17. Nd4 {[%clk 0:02:38]}  Ne5 {[%clk 0:01:54]} 18. Nf5 {[%clk 0:02:23]}  Qe6 {[%clk 0:01:54]} 19. Nxd6 {[%clk 0:02:21]}  Qxd6 {[%clk 0:01:54]} 20. Qxe5 {[%clk 0:02:21]}  Qxe5 {[%clk 0:01:54]} 21. Bxe5 {[%clk 0:02:22]}  Bxe2 {[%clk 0:01:54]} 22. Rfe1 {[%clk 0:02:22]}  Rxc4 {[%clk 0:01:46]} 23. Rxc4 {[%clk 0:02:14]}  Bxc4 {[%clk 0:01:45]} 24. Bxf6 {[%clk 0:02:15]}  gxf6 {[%clk 0:01:45]} 25. Rxe4 {[%clk 0:02:14]}  b5 {[%clk 0:01:24]} 26. Re7 {[%clk 0:02:12]}  Rd8 {[%clk 0:01:18]} 27. Rxa7 {[%clk 0:01:44]}  Rd1+ {[%clk 0:01:17]} 28. Kh2 {[%clk 0:01:45]}  Rd2 {[%clk 0:01:17]} 29. g4 {[%clk 0:01:46]}  Rxf2 {[%clk 0:01:17]} 30. Kg3 {[%clk 0:01:46]}  Rb2 {[%clk 0:01:13]} 31. h4 {[%clk 0:01:36]}  Kg7 {[%clk 0:01:12]} 32. Bc6 {[%clk 0:01:35]}  Rc2 {[%clk 0:01:02]} 33. Ra5 {[%clk 0:01:29]}  Rc3+ {[%clk 0:00:59]} 34. Kf4 {[%clk 0:01:29]}  h6 {[%clk 0:00:42]} 35. h5 {[%clk 0:01:14]}  Rb3 {[%clk 0:00:30]} 36. Bxb5 {[%clk 0:01:01]}  Bxb5 {[%clk 0:00:23]} 37. Rxb5 {[%clk 0:01:02]}  Rxa3 {[%clk 0:00:24]} 38. Rc5 {[%clk 0:01:02]}  Rb3 {[%clk 0:00:23]} 39. Rc4 {[%clk 0:01:02]}  Rb1 {[%clk 0:00:23]} 40. Ke4 {[%clk 0:01:02]}  Rb3 {[%clk 0:00:19]} 41. Kd5 {[%clk 0:01:01]}  f5 {[%clk 0:00:19]} 42. gxf5 {[%clk 0:01:02]}  Kf6 {[%clk 0:00:19]} 43. Kc6 {[%clk 0:00:56]}  Kxf5 {[%clk 0:00:19]} 44. b5 {[%clk 0:00:57]}  Kg5 {[%clk 0:00:19]} 45. b6 {[%clk 0:00:56]}  f5 {[%clk 0:00:19]} 46. b7 {[%clk 0:00:56]}  Kxh5 {[%clk 0:00:14]} 47. Rc5 {[%clk 0:00:49]}  Rxb7 {[%clk 0:00:13]} 48. Kxb7 {[%clk 0:00:50]}  Kg4 {[%clk 0:00:13]} 49. Kc6 {[%clk 0:00:50]}  f4 {[%clk 0:00:09]} 50. Kd5 {[%clk 0:00:51]}  f3 {[%clk 0:00:09]} 51. Ke4 {[%clk 0:00:52]}  h5 {[%clk 0:00:05]} 52. Ke3 {[%clk 0:00:51]} 1-0


[Site "https://www.chess.com"]

[Event "Titled Tuesday Blitz June 28 Early 2022"]
[White "Narayanan.S.L"]
[Black "Timofeev, Artyom"]
[WhiteFideId "5058422"]
[BlackFideId "4140419"]
[WhiteElo "2494"]
[BlackElo "2578"]
[Result "1-0"]
[Round "09"]
[TimeControl "180+1"]
[Date "2022.06.28"]
[WhiteClock "0:01:35"]
[BlackClock "0:00:06"]

1. e4 {[%clk 0:03:00]}  c6 {[%clk 0:02:59]} 2. Nf3 {[%clk 0:02:59]}  d5 {[%clk 0:02:59]} 3. d3 {[%clk 0:03:00]}  dxe4 {[%clk 0:02:59]} 4. dxe4 {[%clk 0:03:00]}  Qxd1+ {[%clk 0:02:59]} 5. Kxd1 {[%clk 0:03:01]}  Nd7 {[%clk 0:02:58]} 6. Ne1 {[%clk 0:03:00]}  g6 {[%clk 0:02:57]} 7. f3 {[%clk 0:02:58]}  Bg7 {[%clk 0:02:56]} 8. a4 {[%clk 0:02:59]}  a5 {[%clk 0:02:56]} 9. Nd3 {[%clk 0:02:58]}  f5 {[%clk 0:02:46]} 10. Nd2 {[%clk 0:02:57]}  Nh6 {[%clk 0:02:41]} 11. exf5 {[%clk 0:02:51]}  gxf5 {[%clk 0:02:40]} 12. Nc4 {[%clk 0:02:50]}  Nf7 {[%clk 0:02:36]} 13. c3 {[%clk 0:02:49]}  e5 {[%clk 0:02:32]} 14. Kc2 {[%clk 0:02:47]}  O-O {[%clk 0:02:31]} 15. Be3 {[%clk 0:02:45]}  e4 {[%clk 0:02:24]} 16. fxe4 {[%clk 0:02:43]}  fxe4 {[%clk 0:02:24]} 17. Nc5 {[%clk 0:02:40]}  Nfe5 {[%clk 0:02:06]} 18. Nxd7 {[%clk 0:02:31]}  Bxd7 {[%clk 0:01:53]} 19. Nxe5 {[%clk 0:02:31]}  Bxe5 {[%clk 0:01:52]} 20. Bc4+ {[%clk 0:02:32]}  Kg7 {[%clk 0:01:52]} 21. h3 {[%clk 0:02:29]}  Bf4 {[%clk 0:01:35]} 22. Bd4+ {[%clk 0:02:27]}  Kh6 {[%clk 0:01:34]} 23. Rhf1 {[%clk 0:02:24]}  Bg5 {[%clk 0:01:28]} 24. h4 {[%clk 0:02:01]}  Be7 {[%clk 0:01:14]} 25. g3 {[%clk 0:01:58]}  Bh3 {[%clk 0:01:10]} 26. Be3+ {[%clk 0:01:55]}  Kh5 {[%clk 0:00:56]} 27. Bf7+ {[%clk 0:01:49]}  Kg4 {[%clk 0:00:56]} 28. Rf4+ {[%clk 0:01:48]}  Kxg3 {[%clk 0:00:54]} 29. Rg1+ {[%clk 0:01:48]}  Kh2 {[%clk 0:00:54]} 30. Rg7 {[%clk 0:01:45]}  Bg2 {[%clk 0:00:12]} 31. Rf2 {[%clk 0:01:44]}  Kh3 {[%clk 0:00:12]} 32. Rgxg2 {[%clk 0:01:31]}  Rxf7 {[%clk 0:00:12]} 33. Rxf7 {[%clk 0:01:32]}  Kxg2 {[%clk 0:00:12]} 34. Rxe7 {[%clk 0:01:33]}  Kf3 {[%clk 0:00:13]} 35. Bd4 {[%clk 0:01:32]}  h5 {[%clk 0:00:12]} 36. Rf7+ {[%clk 0:01:31]}  Kg4 {[%clk 0:00:12]} 37. Be3 {[%clk 0:01:32]}  Kxh4 {[%clk 0:00:12]} 38. Kd2 {[%clk 0:01:31]}  Kg3 {[%clk 0:00:12]} 39. Ke2 {[%clk 0:01:32]}  h4 {[%clk 0:00:12]} 40. Rg7+ {[%clk 0:01:32]}  Kh3 {[%clk 0:00:12]} 41. Re7 {[%clk 0:01:32]}  Kg3 {[%clk 0:00:12]} 42. Bf2+ {[%clk 0:01:33]}  Kh3 {[%clk 0:00:11]} 43. Rxe4 {[%clk 0:01:33]}  Rh8 {[%clk 0:00:10]} 44. b4 {[%clk 0:01:33]}  axb4 {[%clk 0:00:10]} 45. cxb4 {[%clk 0:01:34]}  Rh5 {[%clk 0:00:08]} 46. a5 {[%clk 0:01:34]}  Rh7 {[%clk 0:00:05]} 47. Kd3 {[%clk 0:01:34]}  Kg2 {[%clk 0:00:05]} 48. Bxh4 {[%clk 0:01:34]}  Rd7+ {[%clk 0:00:05]} 49. Rd4 {[%clk 0:01:34]}  Rd5 {[%clk 0:00:05]} 50. Rxd5 {[%clk 0:01:34]}  cxd5 {[%clk 0:00:06]} 51. b5 {[%clk 0:01:35]} 1-0


[Site "https://www.chess.com"]

[Event "Titled Tuesday Blitz June 28 Early 2022"]
[White "Navarrete Mendez, Gonzalo Alberto"]
[Black "Madaminov, Mukhiddin"]
[WhiteFideId "5106850"]
[BlackFideId "14210703"]
[WhiteElo "2261"]
[BlackElo "1916"]
[Result "0-1"]
[Round "09"]
[TimeControl "180+1"]
[Date "2022.06.28"]
[WhiteClock "0:00:17"]
[BlackClock "0:01:10"]

1. e4 {[%clk 0:03:00]}  e6 {[%clk 0:03:00]} 2. d4 {[%clk 0:03:00]}  d5 {[%clk 0:03:00]} 3. Nc3 {[%clk 0:03:01]}  Nf6 {[%clk 0:03:01]} 4. Bg5 {[%clk 0:03:00]}  Bb4 {[%clk 0:02:59]} 5. e5 {[%clk 0:03:00]}  h6 {[%clk 0:03:00]} 6. Be3 {[%clk 0:03:00]}  Ne4 {[%clk 0:02:59]} 7. Qg4 {[%clk 0:03:00]}  g6 {[%clk 0:02:57]} 8. a3 {[%clk 0:02:57]}  Bxc3+ {[%clk 0:02:55]} 9. bxc3 {[%clk 0:02:57]}  c5 {[%clk 0:02:55]} 10. Bd3 {[%clk 0:02:51]}  Nxc3 {[%clk 0:02:49]} 11. dxc5 {[%clk 0:02:49]}  Nc6 {[%clk 0:02:49]} 12. Nf3 {[%clk 0:02:47]}  Bd7 {[%clk 0:02:28]} 13. Bxg6 {[%clk 0:02:22]}  Rg8 {[%clk 0:02:20]} 14. Bxf7+ {[%clk 0:02:19]}  Kxf7 {[%clk 0:02:20]} 15. Qh5+ {[%clk 0:02:19]}  Rg6 {[%clk 0:02:19]} 16. Bxh6 {[%clk 0:02:09]}  Ne4 {[%clk 0:02:11]} 17. Nh4 {[%clk 0:01:59]}  Nxe5 {[%clk 0:02:02]} 18. Nxg6 {[%clk 0:01:29]}  Nxg6 {[%clk 0:02:01]} 19. O-O {[%clk 0:01:24]}  Qf6 {[%clk 0:01:49]} 20. Be3 {[%clk 0:00:56]}  Rh8 {[%clk 0:01:45]} 21. Qg4 {[%clk 0:00:54]}  Bc6 {[%clk 0:01:37]} 22. f3 {[%clk 0:00:52]}  Nc3 {[%clk 0:01:34]} 23. Kh1 {[%clk 0:00:39]}  Qe5 {[%clk 0:01:26]} 24. Bg1 {[%clk 0:00:35]}  Rh4 {[%clk 0:01:24]} 25. f4 {[%clk 0:00:34]}  Rxg4 {[%clk 0:01:21]} 26. fxe5+ {[%clk 0:00:34]}  Ke7 {[%clk 0:01:19]} 27. h3 {[%clk 0:00:34]}  Rg5 {[%clk 0:01:17]} 28. Be3 {[%clk 0:00:29]}  Rh5 {[%clk 0:01:14]} 29. Bd4 {[%clk 0:00:19]}  Ne2 {[%clk 0:01:13]} 30. Bf2 {[%clk 0:00:17]}  d4 {[%clk 0:01:13]} 31. Kh2 {[%clk 0:00:17]}  Ngf4 {[%clk 0:01:10]} 32. g4 {[%clk 0:00:17]}  Rxh3# {[%clk 0:01:10]} 0-1


[Site "https://www.chess.com"]

[Event "Titled Tuesday Blitz June 28 Early 2022"]
[White "Nayem, Haque"]
[Black "Shailendra, K Bajpai"]
[WhiteFideId "10217754"]
[BlackFideId "5014670"]
[WhiteElo "1982"]
[BlackElo "2242"]
[Result "1-0"]
[Round "09"]
[TimeControl "180+1"]
[Date "2022.06.28"]
[WhiteClock "0:02:11"]
[BlackClock "0:00:01"]

1. e4 {[%clk 0:02:51]}  c5 {[%clk 0:02:58]} 2. Nf3 {[%clk 0:02:51]}  d6 {[%clk 0:02:49]} 3. d4 {[%clk 0:02:50]}  cxd4 {[%clk 0:02:46]} 4. Nxd4 {[%clk 0:02:51]}  Nf6 {[%clk 0:02:47]} 5. Nc3 {[%clk 0:02:51]}  g6 {[%clk 0:02:46]} 6. Be3 {[%clk 0:02:46]}  Bg7 {[%clk 0:02:43]} 7. h3 {[%clk 0:02:46]}  O-O {[%clk 0:02:43]} 8. Qd2 {[%clk 0:02:47]}  Nc6 {[%clk 0:02:43]} 9. O-O-O {[%clk 0:02:46]}  d5 {[%clk 0:02:39]} 10. exd5 {[%clk 0:02:41]}  Nxd5 {[%clk 0:02:30]} 11. Nxc6 {[%clk 0:02:40]}  bxc6 {[%clk 0:02:30]} 12. Nxd5 {[%clk 0:02:40]}  cxd5 {[%clk 0:02:27]} 13. Qxd5 {[%clk 0:02:39]}  Qc7 {[%clk 0:02:24]} 14. Qc5 {[%clk 0:02:35]}  Qb7 {[%clk 0:02:20]} 15. c3 {[%clk 0:02:33]}  Bf5 {[%clk 0:01:43]} 16. Qb5 {[%clk 0:02:31]}  Qc7 {[%clk 0:01:23]} 17. Qc5 {[%clk 0:02:30]}  Qxc5 {[%clk 0:00:41]} 18. Bxc5 {[%clk 0:02:28]}  Rfc8 {[%clk 0:00:42]} 19. Bd4 {[%clk 0:02:28]}  e5 {[%clk 0:00:36]} 20. Be3 {[%clk 0:02:27]}  a5 {[%clk 0:00:36]} 21. Bb5 {[%clk 0:02:22]}  a4 {[%clk 0:00:35]} 22. a3 {[%clk 0:02:21]}  Rab8 {[%clk 0:00:15]} 23. Bd7 {[%clk 0:02:20]}  Bxd7 {[%clk 0:00:07]} 24. Rxd7 {[%clk 0:02:19]}  Bf8 {[%clk 0:00:06]} 25. Ra7 {[%clk 0:02:14]}  Bxa3 {[%clk 0:00:03]} 26. bxa3 {[%clk 0:02:13]}  Rxc3+ {[%clk 0:00:03]} 27. Kd2 {[%clk 0:02:12]}  Rxa3 {[%clk 0:00:04]} 28. Rc1 {[%clk 0:02:12]}  Rd8+ {[%clk 0:00:02]} 29. Ke2 {[%clk 0:02:11]}  Ra2+ {[%clk 0:00:02]} 30. Kf1 {[%clk 0:02:11]}  a3 {[%clk 0:00:01]} 31. g4 {[%clk 0:02:11]} 1-0


[Site "https://www.chess.com"]

[Event "Titled Tuesday Blitz June 28 Early 2022"]
[White "Nguyen, Quoc Hy"]
[Black "Garv Gaur"]
[WhiteFideId "12410853"]
[BlackFideId "45030839"]
[WhiteElo "1938"]
[BlackElo "1950"]
[Result "1-0"]
[Round "09"]
[TimeControl "180+1"]
[Date "2022.06.28"]
[WhiteClock "0:00:08"]
[BlackClock "0:00:08"]

1. d4 {[%clk 0:03:00]}  d5 {[%clk 0:02:59]} 2. c4 {[%clk 0:02:59]}  e6 {[%clk 0:02:59]} 3. Nc3 {[%clk 0:03:00]}  Nf6 {[%clk 0:03:00]} 4. cxd5 {[%clk 0:02:57]}  exd5 {[%clk 0:03:00]} 5. Bg5 {[%clk 0:02:58]}  c6 {[%clk 0:03:00]} 6. e3 {[%clk 0:02:58]}  Be7 {[%clk 0:03:00]} 7. Bd3 {[%clk 0:02:58]}  h6 {[%clk 0:03:00]} 8. Bh4 {[%clk 0:02:57]}  O-O {[%clk 0:03:00]} 9. Qc2 {[%clk 0:02:56]}  Nbd7 {[%clk 0:02:59]} 10. Nf3 {[%clk 0:02:56]}  Re8 {[%clk 0:02:59]} 11. Rg1 {[%clk 0:02:51]}  Ne4 {[%clk 0:02:58]} 12. Bxe7 {[%clk 0:02:47]}  Qxe7 {[%clk 0:02:59]} 13. g4 {[%clk 0:02:48]}  Nf8 {[%clk 0:02:43]} 14. g5 {[%clk 0:02:41]}  h5 {[%clk 0:02:40]} 15. Bxe4 {[%clk 0:02:27]}  dxe4 {[%clk 0:02:40]} 16. Ne5 {[%clk 0:02:27]}  Bf5 {[%clk 0:02:40]} 17. f3 {[%clk 0:02:16]}  Ng6 {[%clk 0:02:35]} 18. Nxe4 {[%clk 0:01:36]}  Nxe5 {[%clk 0:02:25]} 19. dxe5 {[%clk 0:01:09]}  Rad8 {[%clk 0:02:16]} 20. Nf6+ {[%clk 0:00:39]}  Qxf6 {[%clk 0:02:15]} 21. gxf6 {[%clk 0:00:40]}  Bxc2 {[%clk 0:02:13]} 22. Rxg7+ {[%clk 0:00:40]}  Kf8 {[%clk 0:01:54]} 23. f4 {[%clk 0:00:40]}  Bg6 {[%clk 0:01:51]} 24. Ke2 {[%clk 0:00:38]}  Bd3+ {[%clk 0:01:30]} 25. Kf3 {[%clk 0:00:32]}  Bf5 {[%clk 0:01:29]} 26. Rag1 {[%clk 0:00:27]}  Bg4+ {[%clk 0:01:29]} 27. Ke4 {[%clk 0:00:27]}  Rd6 {[%clk 0:01:20]} 28. Rh7 {[%clk 0:00:18]}  Kg8 {[%clk 0:01:20]} 29. Rxh5 {[%clk 0:00:18]}  Rxf6 {[%clk 0:01:02]} 30. Rxg4+ {[%clk 0:00:19]}  Rg6 {[%clk 0:00:58]} 31. Rxg6+ {[%clk 0:00:19]}  fxg6 {[%clk 0:00:59]} 32. Rg5 {[%clk 0:00:19]}  Kf7 {[%clk 0:00:59]} 33. h4 {[%clk 0:00:19]}  Rh8 {[%clk 0:00:58]} 34. Rg4 {[%clk 0:00:19]}  Rd8 {[%clk 0:00:58]} 35. f5 {[%clk 0:00:16]}  gxf5+ {[%clk 0:00:56]} 36. Kxf5 {[%clk 0:00:16]}  Rd2 {[%clk 0:00:57]} 37. e6+ {[%clk 0:00:16]}  Kf8 {[%clk 0:00:57]} 38. e7+ {[%clk 0:00:12]}  Kxe7 {[%clk 0:00:56]} 39. Rg7+ {[%clk 0:00:12]}  Kd6 {[%clk 0:00:54]} 40. Rxb7 {[%clk 0:00:13]}  Re2 {[%clk 0:00:43]} 41. Rb3 {[%clk 0:00:09]}  Rf2+ {[%clk 0:00:38]} 42. Kg5 {[%clk 0:00:09]}  Ke5 {[%clk 0:00:38]} 43. h5 {[%clk 0:00:09]}  Rg2+ {[%clk 0:00:38]} 44. Kh6 {[%clk 0:00:09]}  Kf6 {[%clk 0:00:38]} 45. Rb7 {[%clk 0:00:09]}  Rh2 {[%clk 0:00:32]} 46. a4 {[%clk 0:00:08]}  Rh3 {[%clk 0:00:25]} 47. Rxa7 {[%clk 0:00:07]}  Rxe3 {[%clk 0:00:23]} 48. Ra6 {[%clk 0:00:07]}  Re6 {[%clk 0:00:22]} 49. b4 {[%clk 0:00:06]}  Kf5+ {[%clk 0:00:21]} 50. Kg7 {[%clk 0:00:06]}  Re7+ {[%clk 0:00:19]} 51. Kf8 {[%clk 0:00:06]}  Rc7 {[%clk 0:00:18]} 52. Ra5+ {[%clk 0:00:03]}  Kf6 {[%clk 0:00:17]} 53. Ke8 {[%clk 0:00:04]}  Rb7 {[%clk 0:00:15]} 54. Rc5 {[%clk 0:00:03]}  Rxb4 {[%clk 0:00:15]} 55. Rxc6+ {[%clk 0:00:03]}  Kg7 {[%clk 0:00:15]} 56. a5 {[%clk 0:00:04]}  Rb7 {[%clk 0:00:08]} 57. h6+ {[%clk 0:00:05]}  Kh7 {[%clk 0:00:08]} 58. a6 {[%clk 0:00:05]}  Ra7 {[%clk 0:00:08]} 59. Kd8 {[%clk 0:00:05]}  Kh8 {[%clk 0:00:05]} 60. Kc8 {[%clk 0:00:05]}  Re7 {[%clk 0:00:02]} 61. Kb8 {[%clk 0:00:04]}  Kh7 {[%clk 0:00:03]} 62. Rc7 {[%clk 0:00:04]}  Rxc7 {[%clk 0:00:03]} 63. Kxc7 {[%clk 0:00:05]}  Kxh6 {[%clk 0:00:04]} 64. a7 {[%clk 0:00:06]}  Kg5 {[%clk 0:00:04]} 65. a8=Q {[%clk 0:00:07]}  Kf4 {[%clk 0:00:05]} 66. Qd5 {[%clk 0:00:07]}  Ke3 {[%clk 0:00:06]} 67. Kd6 {[%clk 0:00:07]}  Kf4 {[%clk 0:00:06]} 68. Qd4+ {[%clk 0:00:07]}  Kf3 {[%clk 0:00:06]} 69. Ke5 {[%clk 0:00:08]}  Kg3 {[%clk 0:00:05]} 70. Qe3+ {[%clk 0:00:07]}  Kg2 {[%clk 0:00:06]} 71. Kf4 {[%clk 0:00:08]}  Kf1 {[%clk 0:00:07]} 72. Qd2 {[%clk 0:00:08]}  Kg1 {[%clk 0:00:07]} 73. Kg3 {[%clk 0:00:08]}  Kh1 {[%clk 0:00:08]} 74. Qg2# {[%clk 0:00:08]} 1-0


[Site "https://www.chess.com"]